fUST/lending_fUST_20240920
["ID","MTS","AMOUNT","RATE_DAILY","PERIOD"]
[338650788,1726847442067,-623.56,0.00016438,2]
[338650789,1726847442076,-623.56,0.00016438,2]
[338650790,1726847442087,-623.56,0.00016438,2]
[338650791,1726847442248,-623.77576354,0.00016438,2]
[338650792,1726847442258,-500.0,0.00016438,2]
[338650793,1726847442268,-500.0,0.00016438,2]
[338650794,1726847442279,-500.0,0.00016438,2]
[338650795,1726847442290,-500.0,0.00016438,2]
[338650796,1726847442301,-500.0,0.00016438,2]
[338650797,1726847442310,-500.0,0.00016438,2]
[338650798,1726847442320,-505.75,0.00016438,2]
[338650799,1726847442331,-500.0,0.00016438,2]
[338650800,1726847442342,-279.76,0.00016438,2]
[338650801,1726847442351,-500.0,0.00016438,2]
[338650803,1726847442361,-500.0,0.00016438,2]
[338650805,1726847442370,-501.07942656,0.00016438,2]
[338650807,1726847442380,-500.0,0.00016438,2]
[338650809,1726847442389,-500.0,0.00016438,2]
[338650811,1726847442399,-500.0,0.00016438,2]
[338650813,1726847442408,-500.0,0.00016438,2]
[338650815,1726847442417,-234.88,0.00016438,2]
[338650817,1726847442432,-500.0,0.00016438,2]
[338650819,1726847442448,-500.0,0.00016438,2]
[338650821,1726847442458,-422.05,0.00016438,2]
[338650823,1726847442467,-500.0,0.00016438,2]
[338650825,1726847442476,-606.52,0.00016438,2]
[338650827,1726847442485,-500.0,0.00016438,2]
[338650829,1726847442495,-500.0,0.00016438,2]
[338650831,1726847442506,-276.72001185,0.00016438,2]
[338650833,1726847442516,-510.88,0.00016438,2]
[338650835,1726847442525,-500.0,0.00016438,2]
[338650837,1726847442535,-500.0,0.00016438,2]
[338650840,1726847442545,-500.0,0.00016438,2]
[338650842,1726847442554,-1125.02,0.00016438,2]
[338650845,1726847442563,-500.0,0.00016438,2]
[338650848,1726847442572,-2101.45,0.00016438,2]
[338650850,1726847442583,-500.0,0.00016438,2]
[338650852,1726847442592,-608.01,0.00016438,2]
[338650853,1726847442602,-500.0,0.00016438,2]
[338650854,1726847442611,-297.61,0.00016438,2]
[338650855,1726847442621,-500.0,0.00016438,2]
[338650856,1726847442630,-500.0,0.00016438,2]
[338650857,1726847442639,-500.0,0.00016438,2]
[338650858,1726847442649,-500.0,0.00016438,2]
[338650859,1726847442658,-500.0,0.00016438,2]
[338650860,1726847442668,-500.0,0.00016438,2]
[338650861,1726847442680,-500.0,0.00016438,2]
[338650862,1726847442689,-503.22976145,0.00016438,2]
[338650864,1726847442698,-500.0,0.00016438,2]
[338650866,1726847442708,-500.0,0.00016438,2]
[338650867,1726847442718,-500.0,0.00016438,2]
[338650868,1726847442727,-500.0,0.00016438,2]
[338650869,1726847442737,-770.65,0.00016438,2]
[338650870,1726847442746,-500.0,0.00016438,2]
[338650871,1726847442755,-500.0,0.00016438,2]
[338650872,1726847442765,-500.0,0.00016438,2]
[338650873,1726847442774,-761.01,0.00016438,2]
[338650874,1726847442783,-500.0,0.00016438,2]
[338650875,1726847442792,-500.0,0.00016438,2]
[338650876,1726847442802,-500.0,0.00016438,2]
[338650877,1726847442811,-500.0,0.00016438,2]
[338650878,1726847442821,-668.31,0.00016438,2]
[338650879,1726847442830,-500.0,0.00016438,2]
[338650880,1726847442840,-433.8,0.00016438,2]
[338650881,1726847442849,-503.59,0.00016438,2]
[338650882,1726847442859,-682.12,0.00016438,2]
[338650883,1726847442868,-500.0,0.00016438,2]
[338650887,1726847442899,-500.0,0.00016438,2]
[338650888,1726847442909,-500.0,0.00016438,2]
[338650890,1726847442919,-500.0,0.00016438,2]
[338650892,1726847442930,-500.0,0.00016438,2]
[338650894,1726847442939,-500.0,0.00016438,2]
[338650896,1726847442949,-413.65601812,0.00016438,2]
[338650898,1726847442958,-500.0,0.00016438,2]
[338650899,1726847442967,-500.0,0.00016438,2]
[338650900,1726847442976,-500.0,0.00016438,2]
[338650901,1726847442986,-1013.35,0.00016438,2]
[338650902,1726847442995,-500.0,0.00016438,2]
[338650903,1726847443005,-500.0,0.00016438,2]
[338650904,1726847443014,-500.0,0.00016438,2]
[338650905,1726847443023,-500.0,0.00016438,2]
[338650907,1726847443032,-2979.29,0.00016438,2]
[338650908,1726847443041,-500.0,0.00016438,2]
[338650910,1726847443050,-500.0,0.00016438,2]
[338650911,1726847443060,-500.0,0.00016438,2]
[338650912,1726847443069,-500.0,0.00016438,2]
[338650913,1726847443079,-577.53,0.00016438,2]
[338650914,1726847443088,-622.83701619,0.00016438,2]
[338650916,1726847443097,-500.0,0.00016438,2]
[338650918,1726847443107,-500.0,0.00016438,2]
[338650919,1726847443117,-500.0,0.00016438,2]
[338650920,1726847443126,-151.0,0.00016438,2]
[338650921,1726847443135,-500.0,0.00016438,2]
[338650922,1726847443144,-151.0,0.00016438,2]
[338650923,1726847443154,-500.0,0.00016438,2]
[338650924,1726847443164,-151.0,0.00016438,2]
[338650925,1726847443175,-151.0,0.00016438,2]
[338650926,1726847443185,-859.03,0.00016438,2]
[338650927,1726847443194,-500.0,0.00016438,2]
[338650928,1726847443205,-500.0,0.00016438,2]
[338650929,1726847443215,-500.0,0.00016438,2]
[338650930,1726847443224,-500.0,0.00016438,2]
[338650931,1726847443234,-500.0,0.00016438,2]
[338650932,1726847443245,-500.0,0.00016438,2]
[338650933,1726847443256,-500.0,0.00016438,2]
[338650934,1726847443266,-500.84564217,0.00016438,2]
[338650935,1726847443275,-500.0,0.00016438,2]
[338650936,1726847443286,-1204.64,0.00016438,2]
[338650937,1726847443296,-500.0,0.00016438,2]
[338650938,1726847443305,-253.4,0.00016438,2]
[338650939,1726847443314,-625.31,0.00016438,2]
[338650940,1726847443325,-501.86708346,0.00016438,2]
[338650941,1726847443335,-501.87955308,0.00016438,2]
[338650942,1726847443344,-742.26,0.00016438,2]
[338650943,1726847443354,-197.897181,0.00016438,2]
[338650944,1726847443363,-500.0,0.00016438,2]
[338650945,1726847443372,-500.0,0.00016438,2]
[338650946,1726847443381,-678.32,0.00016438,2]
[338650947,1726847443390,-314.978215,0.00016438,2]
[338650948,1726847443400,-314.978215,0.00016438,2]
[338650949,1726847443409,-197.897181,0.00016438,2]
[338650950,1726847443418,-1000.0,0.00016438,2]
[338650951,1726847443431,-151.0,0.00016438,2]
[338650952,1726847443441,-151.0,0.00016438,2]
[338650953,1726847443450,-748.33,0.00016438,2]
[338650954,1726847443459,-314.978215,0.00016438,2]
[338650955,1726847443468,-314.978215,0.00016438,2]
[338650956,1726847443478,-500.0,0.00016438,2]
[338650957,1726847443487,-503.53746656,0.00016438,2]
[338650958,1726847443497,-151.0,0.00016438,2]
[338650959,1726847443508,-151.0,0.00016438,2]
[338650960,1726847443517,-507.59,0.00016438,2]
[338650961,1726847443526,-500.0,0.00016438,2]
[338650962,1726847443535,-1005.22,0.00016438,2]
[338650963,1726847443544,-683.6,0.00016438,2]
[338650964,1726847443554,-1122.17,0.00016438,2]
[338650965,1726847443564,-25885.18,0.00016438,2]
[338650966,1726847443573,-898.3,0.00016438,2]
[338650967,1726847443584,-500.0,0.00016438,2]
[338650968,1726847443593,-500.0,0.00016438,2]
[338650969,1726847443603,-151.0,0.00016438,2]
[338650970,1726847443612,-151.0,0.00016438,2]
[338650971,1726847443623,-510.34,0.00016438,2]
[338650972,1726847443633,-7987.48,0.00016438,2]
[338650973,1726847443643,-500.0,0.00016438,2]
[338650974,1726847443654,-151.0,0.00016438,2]
[338650975,1726847443663,-1165.73,0.00016438,2]
[338650976,1726847443674,-151.0,0.00016438,2]
[338650977,1726847443683,-500.0,0.00016438,2]
[338650978,1726847443692,-762.73,0.00016438,2]
[338650979,1726847443701,-500.0,0.00016438,2]
[338650980,1726847443711,-500.0,0.00016438,2]
[338650981,1726847443720,-500.0,0.00016438,2]
[338650982,1726847443730,-500.0,0.00016438,2]
[338650983,1726847443739,-222.41976252,0.00016438,2]
[338650984,1726847443748,-207.74179419,0.00016438,2]
[338650985,1726847443758,-500.0,0.00016438,2]
[338650986,1726847443767,-500.0,0.00016438,2]
[338650987,1726847443776,-588.35770433,0.00016438,2]
[338650988,1726847443786,-500.0,0.00016438,2]
[338650989,1726847443795,-1008.79,0.00016438,2]
[338650990,1726847443804,-391.25814725,0.00016438,2]
[338650991,1726847443814,-801.13,0.00016438,2]
[338650992,1726847443823,-500.0,0.00016438,2]
[338650993,1726847443832,-1470.01,0.00016438,2]
[338650994,1726847443841,-500.0,0.00016438,2]
[338650995,1726847443850,-500.0,0.00016438,2]
[338650996,1726847443859,-500.0,0.00016438,2]
[338650997,1726847443869,-551.8,0.00016438,2]
[338650998,1726847443879,-1141.47,0.00016438,2]
[338650999,1726847443889,-224.99915181,0.00016438,2]
[338651000,1726847443899,-500.0,0.00016438,2]
[338651001,1726847443909,-625.68,0.00016438,2]
[338651002,1726847443921,-744.38,0.00016438,2]
[338651003,1726847443930,-500.0,0.00016438,2]
[338651004,1726847443941,-500.0,0.00016438,2]
[338651005,1726847443951,-500.0,0.00016438,2]
[338651006,1726847443960,-689.43,0.00016438,2]
[338651007,1726847443969,-504.48829786,0.00016438,2]
[338651008,1726847443979,-500.0,0.00016438,2]
[338651009,1726847443987,-612.23,0.00016438,2]
[338651010,1726847443997,-200.0,0.00016438,2]
[338651011,1726847444008,-500.0,0.00016438,2]
[338651012,1726847444018,-500.0,0.00016438,2]
[338651013,1726847444028,-360.44496563,0.00016438,2]
[338651014,1726847444038,-303.297713,0.00016438,2]
[338651015,1726847444049,-303.297713,0.00016438,2]
[338651016,1726847444058,-500.0,0.00016438,2]
[338651017,1726847444068,-692.59,0.00016438,2]
[338651018,1726847444078,-500.0,0.00016438,2]
[338651019,1726847444088,-303.297713,0.00016438,2]
[338651020,1726847444098,-500.0,0.00016438,2]
[338651021,1726847444108,-500.0,0.00016438,2]
[338651022,1726847444118,-303.297713,0.00016438,2]
[338651023,1726847444127,-500.0,0.00016438,2]
[338651024,1726847444138,-326.65756,0.00016438,2]
[338651025,1726847444149,-326.65756,0.00016438,2]
[338651026,1726847444159,-500.0,0.00016438,2]
[338651027,1726847444169,-500.0,0.00016438,2]
[338651028,1726847444178,-599.81651463,0.00016438,2]
[338651029,1726847444187,-326.65756,0.00016438,2]
[338651030,1726847444197,-326.65756,0.00016438,2]
[338651031,1726847444206,-500.0,0.00016438,2]
[338651032,1726847444216,-500.0,0.00016438,2]
[338651033,1726847444226,-568.13,0.00016438,2]
[338651034,1726847444236,-254.00408084,0.00016438,2]
[338651035,1726847444246,-656.31,0.00016438,2]
[338651036,1726847444255,-500.0,0.00016438,2]
[338651037,1726847444264,-998.36,0.00016438,2]
[338651038,1726847444273,-500.0,0.00016438,2]
[338651039,1726847444283,-500.0,0.00016438,2]
[338651040,1726847444293,-509.26,0.00016438,2]
[338651041,1726847444301,-298.73994133,0.00016438,2]
[338651042,1726847444311,-500.0,0.00016438,2]
[338651043,1726847444320,-500.0,0.00016438,2]
[338651044,1726847444330,-500.0,0.00016438,2]
[338651045,1726847444340,-500.0,0.00016438,2]
[338651046,1726847444350,-500.0,0.00016438,2]
[338651047,1726847444360,-638.41,0.00016438,2]
[338651048,1726847444369,-500.0,0.00016438,2]
[338651049,1726847444379,-500.0,0.00016438,2]
[338651050,1726847444388,-501.31492651,0.00016438,2]
[338651051,1726847444398,-587.46783993,0.00016438,2]
[338651052,1726847444408,-500.0,0.00016438,2]
[338651053,1726847444419,-500.0,0.00016438,2]
[338651054,1726847444429,-185.55275421,0.00016438,2]
[338651055,1726847444438,-730.6,0.00016438,2]
[338651056,1726847444448,-500.0,0.00016438,2]
[338651057,1726847444457,-705.45,0.00016438,2]
[338651058,1726847444466,-500.0,0.00016438,2]
[338651059,1726847444476,-199.25246753,0.00016438,2]
[338651060,1726847444485,-500.0,0.00016438,2]
[338651061,1726847444495,-500.0,0.00016438,2]
[338651062,1726847444507,-500.0,0.00016438,2]
[338651063,1726847444516,-500.0,0.00016438,2]
[338651064,1726847444526,-500.0,0.00016438,2]
[338651065,1726847444535,-543.66,0.00016438,2]
[338651066,1726847444546,-1247.9,0.00016438,2]
[338651067,1726847444556,-178.36590775,0.00016438,2]
[338651068,1726847444566,-500.0,0.00016438,2]
[338651069,1726847444575,-501.68743612,0.00016438,2]
[338651070,1726847444587,-615.92,0.00016438,2]
[338651071,1726847444597,-504.61,0.00016438,2]
[338651072,1726847444608,-499.52504147,0.00016438,2]
[338651073,1726847444618,-746.39,0.00016438,2]
[338651074,1726847444627,-259.36,0.00016438,2]
[338651075,1726847444637,-151.0,0.00016438,2]
[338651076,1726847444647,-151.0,0.00016438,2]
[338651077,1726847444657,-500.0,0.00016438,2]
[338651078,1726847444667,-500.0,0.00016438,2]
[338651079,1726847444678,-500.0,0.00016438,2]
[338651080,1726847444688,-611.56852345,0.00016438,2]
[338651081,1726847444698,-500.0,0.00016438,2]
[338651082,1726847444708,-500.0,0.00016438,2]
[338651083,1726847444717,-500.0,0.00016438,2]
[338651084,1726847444727,-500.0,0.00016438,2]
[338651085,1726847444737,-500.0,0.00016438,2]
[338651086,1726847444748,-500.0,0.00016438,2]
[338651087,1726847444758,-2311.09,0.00016438,2]
[338651088,1726847444768,-185.6,0.00016438,2]
[338651089,1726847444778,-500.0,0.00016438,2]
[338651090,1726847444788,-500.0,0.00016438,2]
[338651091,1726847444799,-500.0,0.00016438,2]
[338651092,1726847444810,-151.0,0.00016438,2]
[338651093,1726847444821,-151.0,0.00016438,2]
[338651094,1726847444830,-500.0,0.00016438,2]
[338651095,1726847444839,-500.0,0.00016438,2]
[338651096,1726847444850,-500.0,0.00016438,2]
[338651097,1726847444861,-500.0,0.00016438,2]
[338651098,1726847444870,-500.0,0.00016438,2]
[338651099,1726847444880,-151.0,0.00016438,2]
[338651100,1726847444890,-151.0,0.00016438,2]
[338651101,1726847444901,-500.0,0.00016438,2]
[338651102,1726847444911,-500.0,0.00016438,2]
[338651103,1726847444922,-500.0,0.00016438,2]
[338651104,1726847444932,-500.0,0.00016438,2]
[338651105,1726847444943,-500.0,0.00016438,2]
[338651106,1726847444953,-479.90076632,0.00016438,2]
[338651107,1726847444962,-500.0,0.00016438,2]
[338651108,1726847444971,-500.0,0.00016438,2]
[338651109,1726847444982,-510.27,0.00016438,2]
[338651110,1726847444993,-500.0,0.00016438,2]
[338651111,1726847445003,-500.0,0.00016438,2]
[338651112,1726847445013,-500.0,0.00016438,2]
[338651113,1726847445023,-500.0,0.00016438,2]
[338651114,1726847445032,-500.0,0.00016438,2]
[338651115,1726847445042,-500.0,0.00016438,2]
[338651116,1726847445051,-500.0,0.00016438,2]
[338651117,1726847445060,-500.0,0.00016438,2]
[338651118,1726847445070,-500.0,0.00016438,2]
[338651119,1726847445080,-500.0,0.00016438,2]
[338651120,1726847445089,-500.0,0.00016438,2]
[338651121,1726847445099,-500.0,0.00016438,2]
[338651122,1726847445107,-500.0,0.00016438,2]
[338651123,1726847445117,-500.0,0.00016438,2]
[338651124,1726847445125,-500.0,0.00016438,2]
[338651125,1726847445135,-500.0,0.00016438,2]
[338651126,1726847445144,-594.21,0.00016438,2]
[338651127,1726847445154,-500.0,0.00016438,2]
[338651128,1726847445164,-500.0,0.00016438,2]
[338651129,1726847445174,-807.52,0.00016438,2]
[338651130,1726847445192,-500.0,0.00016438,2]
[338651131,1726847445202,-500.0,0.00016438,2]
[338651132,1726847445211,-500.0,0.00016438,2]
[338651133,1726847445221,-500.0,0.00016438,2]
[338651134,1726847445230,-500.0,0.00016438,2]
[338651135,1726847445239,-500.0,0.00016438,2]
[338651136,1726847445249,-500.0,0.00016438,2]
[338651137,1726847445259,-500.0,0.00016438,2]
[338651138,1726847445269,-500.0,0.00016438,2]
[338651139,1726847445278,-500.0,0.00016438,2]
[338651140,1726847445287,-500.0,0.00016438,2]
[338651141,1726847445296,-500.0,0.00016438,2]
[338651142,1726847445306,-151.0,0.00016438,2]
[338651143,1726847445315,-500.0,0.00016438,2]
[338651144,1726847445324,-151.0,0.00016438,2]
[338651145,1726847445333,-500.0,0.00016438,2]
[338651146,1726847445479,-500.0,0.00016438,2]
[338651147,1726847445489,-502.11038455,0.00016438,2]
[338651148,1726847445500,-500.0,0.00016438,2]
[338651149,1726847445516,-500.0,0.00016438,2]
[338651150,1726847445528,-500.0,0.00016438,2]
[338651151,1726847445538,-500.0,0.00016438,2]
[338651152,1726847445547,-501.50384832,0.00016438,2]
[338651153,1726847445557,-500.0,0.00016438,2]
[338651154,1726847445566,-500.0,0.00016438,2]
[338651155,1726847445576,-158.27,0.00016438,2]
[338651156,1726847445586,-3000.0,0.0001644,2]
[338651157,1726847445596,-3000.0,0.0001645,2]
[338651158,1726847445605,-3000.0,0.0001646,2]
[338651159,1726847445615,-151.0,0.0001647,2]
[338651160,1726847445624,-3000.0,0.0001647,2]
[338651161,1726847445634,-151.0,0.0001647,2]
[338651162,1726847445643,-625.52723501,0.00016473,2]
[338651163,1726847445652,-500.0,0.00016473,2]
[338651164,1726847445662,-500.0,0.00016473,2]
[338651165,1726847445671,-500.0,0.00016473,2]
[338651166,1726847445684,-500.0,0.00016473,2]
[338651167,1726847445694,-500.0,0.00016473,2]
[338651168,1726847445705,-500.0,0.00016473,2]
[338651169,1726847445715,-500.0,0.00016473,2]
[338651170,1726847445725,-500.0,0.00016473,2]
[338651171,1726847445735,-500.0,0.00016473,2]
[338651172,1726847445744,-500.0,0.00016473,2]
[338651173,1726847445754,-500.0,0.00016473,2]
[338651174,1726847445763,-386.97029397,0.00016473,2]
[338651175,1726847445772,-500.9561753,0.00016473,2]
[338651176,1726847445782,-210.90288632,0.00016473,2]
[338651177,1726847445792,-500.32467203,0.00016473,2]
[338651178,1726847445802,-500.0,0.00016473,2]
[338651179,1726847445811,-500.0,0.00016473,2]
[338651180,1726847445821,-360.1957471,0.00016473,2]
[338651181,1726847445830,-500.0,0.00016473,2]
[338651182,1726847445840,-500.0,0.00016473,2]
[338651183,1726847445849,-500.0,0.00016473,2]
[338651184,1726847445859,-160.09702408,0.00016473,2]
[338651185,1726847445869,-500.0,0.00016473,2]
[338651187,1726847445878,-500.0,0.00016473,2]
[338651188,1726847445888,-500.0,0.00016473,2]
[338651189,1726847445897,-500.0,0.00016473,2]
[338651190,1726847445907,-500.0,0.00016473,2]
[338651191,1726847445916,-499.0,0.00016473,2]
[338651192,1726847445926,-500.0,0.00016473,2]
[338651193,1726847445937,-158.05926,0.00016473,2]
[338651194,1726847445948,-197.897181,0.00016473,2]
[338651195,1726847445959,-197.897181,0.00016473,2]
[338651196,1726847445968,-3000.0,0.0001648,2]
[338651197,1726847445978,-3000.0,0.0001649,2]
[338651198,1726847445989,-3000.0,0.000165,2]
[338651199,1726847446000,-3000.0,0.0001651,2]
[338651200,1726847446009,-277.475254,0.0001652,2]
[338651201,1726847446020,-3000.0,0.0001652,2]
[338651202,1726847446031,-3000.0,0.0001653,2]
[338651203,1726847446041,-3000.0,0.0001654,2]
[338651204,1726847446051,-1141.095,0.0001655,2]
[338651205,1726847446061,-3000.0,0.0001655,2]
[338651206,1726847446070,-3000.0,0.0001656,2]
[338651207,1726847446079,-3000.0,0.0001657,2]
[338651208,1726847446089,-3000.0,0.0001658,2]
[338651209,1726847446100,-3000.0,0.0001659,2]
[338651210,1726847446110,-3000.0,0.000166,2]
[338651211,1726847446120,-3000.0,0.0001661,2]
[338651212,1726847446129,-3000.0,0.0001662,2]
[338651213,1726847446139,-3000.0,0.0001663,2]
[338651214,1726847446150,-3000.0,0.0001664,2]
[338651215,1726847446160,-3000.0,0.0001665,2]
[338651216,1726847446170,-306.0,0.0001666,2]
[338651217,1726847446181,-830.4829052,0.0001666,2]
[338651218,1726847446190,-209.6738331,0.0001666,2]
[338651219,1726847446200,-153.0,0.0001666,2]
[338651220,1726847446210,-3000.0,0.0001666,2]
[338651221,1726847446219,-3000.0,0.0001667,2]
[338651222,1726847446228,-3000.0,0.0001668,2]
[338651223,1726847446237,-151.0,0.00016684,2]
[338651224,1726847446247,-8000.0,0.00016684,2]
[338651225,1726847446256,-151.0,0.00016684,2]
[338651226,1726847446266,-3000.0,0.0001669,2]
[338651227,1726847446275,-478.45338864,0.000167,2]
[338651228,1726847446285,-3000.0,0.000167,2]
[338651229,1726847446294,-151.0,0.00016702,2]
[338651230,1726847446304,-3000.0,0.0001671,2]
[338651231,1726847446314,-151.0,0.00016712,2]
[338651232,1726847446325,-151.0,0.00016712,2]
[338651233,1726847446334,-523.05177231,0.00016712,2]
[338651234,1726847446345,-500.0,0.00016712,2]
[338651235,1726847446356,-500.0,0.00016712,2]
[338651236,1726847446365,-504.96,0.00016712,2]
[338651237,1726847446375,-500.0,0.00016712,2]
[338651238,1726847446384,-176.08519079,0.00016712,2]
[338651239,1726847446393,-500.0,0.00016712,2]
[338651240,1726847446403,-500.0,0.00016712,2]
[338651241,1726847446412,-303.04,0.00016712,2]
[338651242,1726847446423,-500.0,0.00016712,2]
[338651243,1726847446433,-500.0,0.00016712,2]
[338651244,1726847446444,-500.0,0.00016712,2]
[338651245,1726847446455,-500.0,0.00016712,2]
[338651246,1726847446464,-500.0,0.00016712,2]
[338651247,1726847446473,-500.0,0.00016712,2]
[338651248,1726847446482,-506.10607374,0.00016712,2]
[338651249,1726847446492,-500.0,0.00016712,2]
[338651250,1726847446502,-805.76,0.00016712,2]
[338651251,1726847446516,-247.22233698,0.00016712,2]
[338651252,1726847446527,-500.0,0.00016712,2]
[338651253,1726847446538,-500.0,0.00016712,2]
[338651254,1726847446549,-500.0,0.00016712,2]
[338651255,1726847446560,-184.96654,0.00016712,2]
[338651256,1726847446570,-500.0,0.00016712,2]
[338651257,1726847446580,-654.13,0.00016712,2]
[338651258,1726847446590,-500.0,0.00016712,2]
[338651259,1726847446598,-500.0,0.00016712,2]
[338651260,1726847446607,-607.97112031,0.00016712,2]
[338651261,1726847446617,-767.0,0.00016712,2]
[338651262,1726847446626,-500.0,0.00016712,2]
[338651263,1726847446635,-500.0,0.00016712,2]
[338651264,1726847446644,-500.0,0.00016712,2]
[338651265,1726847446653,-500.0,0.00016712,2]
[338651266,1726847446662,-500.0,0.00016712,2]
[338651267,1726847446672,-500.0,0.00016712,2]
[338651268,1726847446682,-500.0,0.00016712,2]
[338651269,1726847446691,-500.0,0.00016712,2]
[338651270,1726847446700,-280.49,0.00016712,2]
[338651271,1726847446712,-500.0,0.00016712,2]
[338651272,1726847446723,-610.00246249,0.00016712,2]
[338651273,1726847446733,-500.0,0.00016712,2]
[338651274,1726847446742,-500.0,0.00016712,2]
[338651275,1726847446753,-500.0,0.00016712,2]
[338651276,1726847446763,-151.0,0.00016712,2]
[338651277,1726847446772,-680.73,0.00016712,2]
[338651278,1726847446781,-500.0,0.00016712,2]
[338651279,1726847446790,-351.49,0.00016712,2]
[338651280,1726847446800,-516.67,0.00016712,2]
[338651281,1726847446809,-500.0,0.00016712,2]
[338651282,1726847446818,-500.0,0.00016712,2]
[338651283,1726847446828,-859.52,0.00016712,2]
[338651284,1726847446837,-500.0,0.00016712,2]
[338651285,1726847446846,-230.17,0.00016712,2]
[338651286,1726847446855,-500.0,0.00016712,2]
[338651287,1726847446865,-500.0,0.00016712,2]
[338651288,1726847446875,-500.0,0.00016712,2]
[338651289,1726847446884,-500.0,0.00016712,2]
[338651290,1726847446893,-500.0,0.00016712,2]
[338651291,1726847446902,-321.42921908,0.00016712,2]
[338651292,1726847446911,-597.12558644,0.00016712,2]
[338651293,1726847446921,-500.0,0.00016712,2]
[338651294,1726847446932,-500.0,0.00016712,2]
[338651295,1726847446941,-500.0,0.00016712,2]
[338651296,1726847446950,-502.96623093,0.00016712,2]
[338651297,1726847446960,-500.0,0.00016712,2]
[338651298,1726847446969,-151.0,0.00016712,2]
[338651299,1726847446978,-279.960979,0.00016712,2]
[338651300,1726847446987,-501.2014432,0.00016712,2]
[338651301,1726847446996,-500.0,0.00016712,2]
[338651302,1726847447006,-500.0,0.00016712,2]
[338651303,1726847447015,-500.0,0.00016712,2]
[338651304,1726847447024,-500.0,0.00016712,2]
[338651305,1726847447033,-500.0,0.00016712,2]
[338651306,1726847447042,-606.52,0.00016712,2]
[338651307,1726847447051,-353.49,0.00016712,2]
[338651308,1726847447061,-510.88,0.00016712,2]
[338651309,1726847447070,-500.0,0.00016712,2]
[338651310,1726847447079,-1125.02,0.00016712,2]
[338651311,1726847447089,-500.0,0.00016712,2]
[338651312,1726847447098,-2101.45,0.00016712,2]
[338651313,1726847447107,-500.0,0.00016712,2]
[338651314,1726847447116,-608.01,0.00016712,2]
[338651315,1726847447126,-500.0,0.00016712,2]
[338651316,1726847447135,-297.61,0.00016712,2]
[338651317,1726847447144,-500.0,0.00016712,2]
[338651318,1726847447153,-500.0,0.00016712,2]
[338651319,1726847447162,-586.27,0.00016712,2]
[338651320,1726847447171,-348.53,0.00016712,2]
[338651321,1726847447181,-500.0,0.00016712,2]
[338651322,1726847447190,-500.0,0.00016712,2]
[338651323,1726847447199,-314.34766486,0.00016712,2]
[338651324,1726847447208,-500.0,0.00016712,2]
[338651325,1726847447217,-500.0,0.00016712,2]
[338651326,1726847447227,-500.0,0.00016712,2]
[338651327,1726847447236,-500.0,0.00016712,2]
[338651328,1726847447245,-770.65,0.00016712,2]
[338651329,1726847447254,-151.0,0.00016712,2]